bitfinex-derivatives/quotes_BTCF0:USTF0_20210105
["timestamp","ask_amount","ask_price","bid_price","bid_amount"]
[1609846276801,0.0953,31404.0,31400.0,0.0944]
[1609846277003,0.0953,31404.0,31401.0,0.0958]
[1609846277404,0.0953,31404.0,31403.0,0.13632608]
[1609846277605,0.13632608,31405.0,31403.0,0.13632608]
[1609846278205,4.4074,31414.0,31403.0,0.13632608]
[1609846278405,0.69468942,31427.0,31404.0,0.0958]
[1609846278606,0.0954,31423.0,31414.0,4.1544]
[1609846279007,0.69468942,31427.0,31414.0,4.1544]
[1609846279206,0.78998942,31427.0,31414.0,4.1544]
[1609846279406,0.78998942,31427.0,31415.0,0.13632608]
[1609846279606,3.0,31420.0,31415.0,0.13632608]
[1609846279806,3.0,31420.0,31415.0,0.23112608]
[1609846280206,0.096,31419.0,31415.0,0.23112608]
[1609846280608,0.096,31419.0,31416.0,0.0965]
[1609846281209,3.0,31420.0,31416.0,0.0965]
[1609846281410,3.0,31420.0,31419.0,0.13632608]
[1609846282611,3.0942,31420.0,31419.0,0.13632608]
[1609846282811,3.0942,31420.0,31419.0,0.23112608]
[1609846283011,3.0942,31420.0,31419.0,4.45682608]
[1609846283411,3.23052608,31420.0,31419.0,4.45682608]
[1609846283611,3.0942,31420.0,31419.0,4.45682608]
[1609846284413,3.0,31420.0,31419.0,4.36202608]
[1609846284612,2.7372,31420.0,31419.0,0.13632608]
[1609846285413,2.7372,31420.0,31419.0,0.23252608]
[1609846285612,2.8321,31420.0,31419.0,0.23252608]
[1609846286014,2.8321,31420.0,31419.0,4.28412608]
[1609846286916,2.7372,31420.0,31419.0,4.28412608]
[1609846287117,2.7372,31420.0,31419.0,4.18792608]
[1609846288016,2.8339,31420.0,31419.0,4.28452608]
[1609846288820,2.7372,31420.0,31419.0,4.18792608]
[1609846289020,2.7372,31420.0,31419.0,0.13632608]
[1609846289323,2.87352608,31420.0,31419.0,0.13632608]
[1609846289921,2.96812608,31420.0,31419.0,0.23212608]
[1609846290120,2.7372,31420.0,31419.0,0.13632608]
[1609846291325,2.8321,31420.0,31419.0,0.23092608]
[1609846291623,2.7372,31420.0,31419.0,0.13632608]
[1609846292726,2.8319,31420.0,31419.0,0.23172608]
[1609846293628,2.7669,31420.0,31419.0,0.23172608]
[1609846293830,2.6722,31420.0,31419.0,0.13632608]
[1609846294929,2.7681,31420.0,31419.0,0.23242608]
[1609846296629,2.7681,31420.0,31419.0,0.99162608]
[1609846296830,2.6722,31420.0,31419.0,0.89552608]
[1609846297830,2.7679,31420.0,31419.0,0.99122608]
[1609846298931,2.6722,31420.0,31419.0,0.89552608]
[1609846300032,2.767,31420.0,31419.0,0.99052608]
[1609846300933,2.767,31420.0,31419.0,0.89552608]
[1609846301134,2.6722,31420.0,31419.0,0.89552608]
[1609846302037,2.7669,31420.0,31419.0,0.99222608]
[1609846303135,2.7669,31420.0,31419.0,0.89552608]
[1609846303336,2.6722,31420.0,31419.0,0.89552608]
[1609846304237,2.7668,31420.0,31419.0,0.99112608]
[1609846306840,2.6722,31420.0,31419.0,0.89552608]
[1609846307040,2.1082,31420.0,31419.0,0.89552608]
[1609846307941,2.2038,31420.0,31419.0,0.98952608]
[1609846308141,2.1082,31420.0,31419.0,0.89552608]
[1609846309043,2.1082,31420.0,31419.0,0.98962608]
[1609846309243,2.2032,31420.0,31419.0,0.98962608]
[1609846309645,2.1082,31420.0,31419.0,0.89552608]
[1609846310545,2.1082,31420.0,31419.0,0.13632608]
[1609846310744,2.2045,31420.0,31419.0,0.23142608]
[1609846310945,2.2045,31420.0,31419.0,4.79382608]
[1609846313447,2.1082,31420.0,31419.0,4.69872608]
[1609846314047,2.0922,31420.0,31419.0,4.69872608]
[1609846314448,2.1883,31420.0,31419.0,4.79432608]
[1609846314648,2.1843,31420.0,31419.0,4.79432608]
[1609846315149,2.0882,31420.0,31419.0,4.79432608]
[1609846315350,2.0701,31420.0,31419.0,4.69872608]
[1609846315950,2.0701,31420.0,31419.0,0.13632608]
[1609846316150,1.9954,31420.0,31419.0,0.13632608]
[1609846316350,2.0107,31420.0,31419.0,0.23142608]
[1609846316551,1.9807,31420.0,31419.0,5.52352608]
[1609846317351,1.8084,31420.0,31419.0,5.52352608]
[1609846317554,1.8084,31420.0,31419.0,0.23142608]
[1609846317753,1.5868,31420.0,31419.0,0.23142608]
[1609846318553,1.6575,31420.0,31419.0,0.23142608]
[1609846318954,1.6575,31420.0,31419.0,4.09692608]
[1609846319455,1.6221,31420.0,31419.0,4.09692608]
[1609846320657,1.5261,31420.0,31419.0,4.00182608]
[1609846321056,1.5169,31420.0,31419.0,4.00182608]
[1609846321257,1.4856,31420.0,31419.0,4.00182608]
[1609846321658,1.5797,31420.0,31419.0,4.09722608]
[1609846322057,1.4856,31420.0,31419.0,4.09722608]
[1609846322660,1.329,31420.0,31419.0,0.23172608]
[1609846322860,1.251,31420.0,31419.0,0.23172608]
[1609846323064,0.95837483,31420.0,31419.0,2.31915701]
[1609846323260,0.94067483,31420.0,31419.0,2.31915701]
[1609846323660,0.60637483,31420.0,31419.0,2.31915701]
[1609846323861,0.51047483,31420.0,31419.0,2.31915701]
[1609846324060,0.32177483,31420.0,31419.0,2.31915701]
[1609846324261,7.483e-05,31420.0,31419.0,2.31915701]
[1609846324461,0.09407483,31420.0,31419.0,2.31915701]
[1609846324861,0.0179,31434.0,31419.0,6.55585701]
[1609846325164,5.0968,31467.0,31419.0,6.55585701]
[1609846325366,0.01953312,31454.0,31419.0,6.55585701]
[1609846325566,0.01953312,31454.0,31441.0,0.13632608]
[1609846325964,0.01953312,31454.0,31441.0,0.25157608]
[1609846326266,0.83274934,31456.0,31441.0,0.25157608]
[1609846326267,3.0955,31450.0,31441.0,0.25157608]
[1609846326463,3.0955,31450.0,31449.0,3.7302]
[1609846326966,3.0,31450.0,31449.0,3.7302]
[1609846327166,2.979,31450.0,31449.0,3.7302]
[1609846327566,2.979,31450.0,31449.0,3.86652608]
[1609846327766,2.979,31450.0,31449.0,0.13632608]
[1609846327975,2.9633,31450.0,31449.0,0.23052608]
[1609846328170,2.9152,31450.0,31449.0,0.23052608]
[1609846328373,2.8681,31450.0,31449.0,0.23052608]
[1609846328574,2.9502,31450.0,31449.0,0.23052608]
[1609846328770,2.9502,31450.0,31449.0,5.12512608]
[1609846329469,2.9079,31450.0,31449.0,5.12512608]
[1609846329868,2.9031,31450.0,31449.0,5.12512608]
[1609846330069,2.8744,31450.0,31449.0,5.12512608]
[1609846330868,2.7758,31450.0,31449.0,5.12512608]
[1609846331168,2.7363,31450.0,31449.0,5.12512608]
[1609846331368,2.7183,31450.0,31449.0,5.12512608]
[1609846331568,2.6713,31450.0,31449.0,5.12512608]
[1609846331768,2.6605,31450.0,31449.0,5.12512608]
[1609846331969,2.7569,31450.0,31449.0,5.12512608]
[1609846332369,2.701,31450.0,31449.0,5.12512608]
[1609846333070,2.6046,31450.0,31449.0,5.12512608]
[1609846333472,2.5176,31450.0,31449.0,5.12512608]
[1609846333671,2.2051,31450.0,31449.0,5.12512608]
[1609846333973,2.2061,31450.0,31449.0,5.12512608]
[1609846334171,2.1532,31450.0,31449.0,5.12512608]
[1609846334471,2.0742,31450.0,31449.0,5.12512608]
[1609846334672,2.0542,31450.0,31449.0,5.12512608]
[1609846334871,2.0184,31450.0,31449.0,5.12512608]
[1609846335071,1.9227,31450.0,31449.0,5.12512608]
[1609846335672,1.8137,31450.0,31449.0,5.12512608]
[1609846336074,1.8137,31450.0,31449.0,0.23052608]
[1609846336273,1.8137,31450.0,31449.0,0.13632608]
[1609846336474,1.8137,31450.0,31449.0,4.58022608]
[1609846337274,1.9094,31450.0,31449.0,4.67632608]
[1609846337474,1.9094,31450.0,31449.0,0.23242608]
[1609846337675,1.9094,31450.0,31449.0,4.41002608]
[1609846337876,1.8137,31450.0,31449.0,4.31392608]
[1609846338275,1.8137,31450.0,31449.0,0.13632608]
[1609846338975,1.8137,31450.0,31449.0,0.23102608]
[1609846339276,1.8137,31450.0,31449.0,0.13632608]
[1609846340076,1.8137,31450.0,31449.0,0.23042608]
[1609846340276,1.9098,31450.0,31449.0,0.23042608]
[1609846341079,1.9098,31450.0,31449.0,0.79362608]
[1609846342182,1.8137,31450.0,31449.0,0.79362608]
[1609846342481,1.751,31450.0,31449.0,0.79362608]
[1609846342683,1.6887,31450.0,31449.0,0.79362608]
[1609846343082,1.6815,31450.0,31449.0,0.79362608]
[1609846343282,1.6262,31450.0,31449.0,0.79362608]
[1609846343483,1.5547,31450.0,31449.0,0.79362608]
[1609846344086,1.5242,31450.0,31449.0,0.79362608]
[1609846344285,1.5242,31450.0,31449.0,0.69952608]
[1609846345585,1.5242,31450.0,31449.0,0.79532608]
[1609846345787,1.5242,31450.0,31449.0,0.23212608]
[1609846345987,1.6185,31450.0,31449.0,0.23212608]
[1609846346187,1.6185,31450.0,31449.0,4.27912608]
[1609846346589,1.5966,31450.0,31449.0,4.27912608]
[1609846346789,1.4699,31450.0,31449.0,4.27912608]
[1609846347191,1.3756,31450.0,31449.0,0.23212608]
[1609846347391,1.3295,31450.0,31449.0,0.23212608]
[1609846347590,1.2662,31450.0,31449.0,0.23212608]
[1609846347991,1.2374,31450.0,31449.0,0.23212608]
[1609846348191,1.3323,31450.0,31449.0,0.23212608]
[1609846348392,1.3323,31450.0,31449.0,4.41842608]
[1609846348791,1.2374,31450.0,31449.0,4.41842608]
[1609846348991,1.2374,31450.0,31449.0,4.32262608]
[1609846349792,1.3332,31450.0,31449.0,4.32262608]
[1609846349992,1.3332,31450.0,31449.0,4.41842608]
[1609846350192,1.291,31450.0,31449.0,4.41842608]
[1609846350393,1.1952,31450.0,31449.0,4.32262608]
[1609846350792,1.1566,31450.0,31449.0,4.32262608]
[1609846350992,0.9627,31450.0,31449.0,4.32262608]
[1609846351393,1.0579,31450.0,31449.0,4.41912608]
[1609846352094,0.9627,31450.0,31449.0,4.41912608]
[1609846352996,0.8624,31450.0,31449.0,4.41912608]
[1609846353397,0.9567,31450.0,31449.0,4.41912608]
[1609846353596,0.9314,31450.0,31449.0,4.41912608]
[1609846354497,0.8371,31450.0,31449.0,0.13632608]
[1609846354704,0.7431,31450.0,31449.0,0.13632608]
[1609846355598,0.87942608,31450.0,31449.0,0.13632608]
[1609846355999,0.87942608,31450.0,31448.0,0.14011]
[1609846356199,5.30722608,31450.0,31438.0,2.03820112]
[1609846356399,5.30722608,31450.0,31438.0,2.13380112]
[1609846356600,5.30722608,31450.0,31438.0,0.0956]
[1609846357204,5.30722608,31450.0,31436.0,4.2749]
[1609846357603,0.13632608,31446.0,31443.0,0.13632608]
[1609846359407,0.7431,31450.0,31443.0,0.13632608]
[1609846359606,0.87942608,31450.0,31443.0,0.24837608]
[1609846360908,0.7431,31450.0,31443.0,0.24837608]
[1609846363610,0.7431,31450.0,31449.0,0.13632608]
[1609846363811,0.7431,31450.0,31449.0,0.23032608]
[1609846365513,0.7431,31450.0,31449.0,5.41102608]
[1609846367717,0.7431,31450.0,31449.0,0.23032608]
[1609846367916,5.0336,31450.0,31444.0,0.0945]
[1609846368116,5.0336,31450.0,31443.0,0.11205]
[1609846368117,0.7431,31450.0,31443.0,0.11205]
[1609846368315,4.8737,31444.0,31430.0,2.22456382]
[1609846368717,0.7431,31450.0,31430.0,2.22456382]
[1609846368718,7.4966,31449.0,31430.0,2.22456382]
[1609846368918,0.7431,31450.0,31431.0,0.12472]
[1609846369117,4.8306,31433.0,31431.0,0.12472]
[1609846369316,0.7431,31450.0,31431.0,0.12472]
[1609846369517,4.1288,31434.0,31431.0,0.12472]
[1609846369719,0.13632608,31432.0,31431.0,0.12472]
[1609846369916,0.13632608,31432.0,31424.0,0.11901]
[1609846370317,5.2022,31425.0,31424.0,0.11901]
[1609846371616,5.33852608,31425.0,31424.0,0.11901]
[1609846374521,5.33852608,31425.0,31420.0,0.13632608]
[1609846375724,0.13632608,31421.0,31420.0,0.13632608]
[1609846379529,5.1521,31425.0,31420.0,0.13632608]
[1609846379728,0.2779,31440.0,31420.0,0.13632608]
[1609846379931,4.0057,31439.0,31420.0,0.25777608]
[1609846381731,0.13632608,31421.0,31420.0,0.25777608]
[1609846382734,0.13632608,31421.0,31420.0,5.26607608]
[1609846383034,4.0855,31439.0,31420.0,5.26607608]
[1609846383633,0.13632608,31429.0,31420.0,5.26607608]
[1609846385637,4.0855,31439.0,31427.0,0.13632608]
[1609846385836,4.0855,31439.0,31428.0,0.0961]
[1609846387038,0.2779,31440.0,31428.0,0.0961]
[1609846387238,0.2779,31440.0,31431.0,3.7086]
[1609846387640,0.13632608,31432.0,31431.0,3.7086]
[1609846388138,0.13632608,31432.0,31428.0,0.0961]
[1609846389437,0.13632608,31432.0,31427.0,0.13632608]
[1609846389837,3.7106,31431.0,31427.0,0.13632608]
[1609846390838,0.13632608,31432.0,31427.0,0.13632608]
[1609846391639,0.13632608,31428.0,31427.0,0.13632608]
[1609846394945,0.13632608,31428.0,31427.0,0.23162608]
[1609846395445,0.13632608,31428.0,31427.0,0.13632608]
[1609846396845,0.13632608,31428.0,31427.0,0.23202608]
[1609846397246,4.2513,31432.0,31427.0,0.23202608]
[1609846397748,0.13632608,31428.0,31427.0,0.23202608]
[1609846398049,0.13632608,31428.0,31427.0,0.13632608]
[1609846399450,0.13632608,31428.0,31427.0,0.23122608]
[1609846401751,4.2513,31432.0,31427.0,0.23122608]
[1609846402251,0.2779,31440.0,31427.0,0.23122608]
[1609846402455,0.2779,31440.0,31431.0,3.7433]
[1609846402659,0.2779,31440.0,31432.0,0.0961]
[1609846403752,0.2779,31440.0,31439.0,0.13632608]
[1609846403951,0.2779,31440.0,31439.0,0.85071608]
[1609846404252,0.13632608,31449.0,31439.0,0.85071608]
[1609846404854,0.13632608,31449.0,31439.0,0.94561608]
[1609846405753,0.13632608,31449.0,31448.0,0.13632608]
[1609846405955,0.13632608,31449.0,31448.0,0.26641608]
[1609846412869,3.9889,31458.0,31448.0,0.26641608]
[1609846413068,0.2858,31459.0,31448.0,0.26641608]
[1609846413770,0.5526,31450.0,31448.0,0.26641608]
[1609846413969,0.2815,31450.0,31449.0,0.0938]
[1609846414469,0.2499,31450.0,31449.0,0.0938]
[1609846414872,0.1228,31450.0,31449.0,0.0938]
[1609846418372,0.047,31450.0,31449.0,0.0938]
[1609846418572,0.0312,31450.0,31449.0,0.0938]
[1609846418772,0.0149,31450.0,31449.0,0.0938]
[1609846419176,0.01949594,31475.0,31449.0,0.0938]
[1609846419374,0.01949594,31475.0,31460.0,5.15673]
[1609846419974,0.01949594,31475.0,31474.0,0.13632608]
[1609846420775,0.59858486,31475.0,31474.0,0.13632608]
[1609846423080,0.13632608,31480.0,31474.0,0.13632608]
[1609846423879,0.13632608,31480.0,31479.0,0.13632608]
[1609846424379,0.2852,31481.0,31479.0,0.13632608]
[1609846428686,0.2852,31481.0,31479.0,0.23142608]
[1609846428887,0.2362,31481.0,31479.0,0.23142608]
[1609846429088,0.13632608,31487.0,31479.0,0.23142608]
[1609846429288,0.59655308,31494.0,31479.0,0.13632608]
[1609846429488,0.59655308,31494.0,31488.0,5.2358]
[1609846429689,0.13655,31494.0,31488.0,5.2358]
[1609846429888,0.13655,31494.0,31493.0,0.13632608]
[1609846430090,0.13655,31494.0,31493.0,0.77212608]
[1609846430690,0.01936311,31506.0,31493.0,0.77212608]
[1609846431893,0.01936311,31506.0,31483.0,0.10059]
[1609846432094,3.6906,31491.0,31487.0,0.13632608]
[1609846433495,0.13632608,31494.0,31487.0,0.13632608]
[1609846434196,4.468,31488.0,31487.0,0.13632608]
[1609846434596,0.13632608,31494.0,31487.0,0.13632608]
[1609846435997,0.13632608,31494.0,31493.0,0.13632608]
[1609846440202,0.13632608,31494.0,31493.0,0.23162608]
[1609846455921,0.12145,31504.0,31493.0,0.23162608]
[1609846456121,0.2808,31509.0,31500.0,0.13632608]
[1609846457525,0.2808,31509.0,31493.0,0.0953]
[1609846457723,4.5748,31501.0,31490.0,0.13777]
[1609846458124,0.13632608,31491.0,31490.0,0.13777]
[1609846458324,0.13632608,31491.0,31487.0,0.13632608]
[1609846458925,4.5748,31501.0,31487.0,0.13632608]
[1609846459125,0.76913062,31519.0,31487.0,0.13632608]
[1609846459325,5.2484,31512.0,31487.0,0.13632608]
[1609846460124,5.2484,31512.0,31498.0,0.13632608]
[1609846462129,0.13632608,31501.0,31498.0,0.13632608]
[1609846462629,0.13632608,31501.0,31486.0,3.7582]
[1609846462829,0.13632608,31501.0,31483.0,0.10059]
[1609846463028,4.753,31499.0,31477.0,3.6224]
[1609846464030,0.13632608,31490.0,31489.0,0.13632608]
[1609846464630,4.753,31499.0,31489.0,0.13632608]
[1609846465231,0.59454957,31516.0,31489.0,0.13632608]
[1609846465430,4.3909,31513.0,31489.0,0.13632608]
[1609846466031,0.13632608,31506.0,31498.0,0.13632608]
[1609846466430,0.13632608,31506.0,31500.0,4.55]
[1609846467030,0.01935832,31516.0,31500.0,4.55]
[1609846467430,0.10191,31509.0,31500.0,4.55]
[1609846467832,0.01935832,31516.0,31500.0,4.55]
[1609846468032,0.01935152,31517.0,31515.0,0.13632608]
[1609846468634,0.2915,31523.0,31515.0,0.13632608]
[1609846468635,0.01937077,31532.0,31515.0,0.13632608]
[1609846469032,0.29377077,31532.0,31515.0,0.13632608]
[1609846469233,0.2744,31532.0,31515.0,0.13632608]
[1609846470033,3.6154,31524.0,31520.0,0.13632608]
[1609846471543,0.09931,31526.0,31520.0,0.13632608]
[1609846472038,0.13632608,31521.0,31520.0,0.13632608]
[1609846473139,0.13632608,31521.0,31511.0,3.6236]
[1609846474040,0.09931,31526.0,31513.0,0.13632608]
[1609846475238,0.0194671,31530.0,31513.0,0.13632608]
[1609846476040,0.13632608,31514.0,31513.0,0.13632608]
[1609846478544,0.14797,31524.0,31513.0,0.13632608]
[1609846478942,0.14797,31524.0,31518.0,4.5918]
[1609846479142,0.14797,31524.0,31519.0,0.0946]
[1609846480043,0.14797,31524.0,31523.0,0.13632608]
[1609846480242,0.14797,31524.0,31523.0,0.86252608]
[1609846481146,0.14797,31524.0,31523.0,0.95682608]
[1609846481343,0.2744,31532.0,31523.0,0.95682608]
[1609846482047,0.13632608,31531.0,31529.0,0.13632608]
[1609846482246,0.22662608,31531.0,31529.0,0.13632608]
[1609846482847,0.22662608,31531.0,31530.0,4.3156]
[1609846483047,0.0903,31531.0,31530.0,4.3156]
[1609846483247,0.00031933,31535.0,31530.0,4.4101]
[1609846483447,0.53108838,31538.0,31530.0,4.4101]
[1609846483650,0.53108838,31538.0,31530.0,0.0945]
[1609846483651,0.23086838,31538.0,31530.0,0.0945]
[1609846483849,1.35463523,31550.0,31530.0,0.0945]
[1609846483850,0.69325343,31545.0,31537.0,4.2918]
[1609846484048,0.69325343,31545.0,31544.0,0.13632608]
[1609846484248,0.69325343,31545.0,31544.0,4.83692608]
[1609846487551,0.66045343,31545.0,31544.0,4.83692608]
[1609846487751,0.44225343,31545.0,31544.0,4.83692608]
[1609846488352,0.37995343,31545.0,31544.0,4.83692608]
[1609846488753,0.28395343,31545.0,31544.0,4.83692608]
[1609846489353,0.19035343,31545.0,31544.0,4.83692608]
[1609846489555,0.12735343,31545.0,31544.0,4.83692608]
[1609846489754,0.13632608,31561.0,31544.0,4.83692608]
[1609846489953,0.13632608,31561.0,31544.0,0.13632608]
[1609846490155,5.564,31571.0,31557.0,0.13632608]
[1609846490955,5.564,31571.0,31542.0,0.11275]
[1609846491155,5.564,31571.0,31542.0,0.20795]
[1609846491355,5.65894,31571.0,31542.0,0.20795]
[1609846492259,5.65894,31571.0,31555.0,0.13632608]
[1609846494160,0.13632608,31561.0,31560.0,0.13632608]
[1609846494360,0.23038608,31561.0,31560.0,0.13632608]
[1609846494962,0.23038608,31561.0,31542.0,0.11275]
[1609846495263,0.23038608,31561.0,31540.0,5.3002]
[1609846496063,0.23038608,31561.0,31540.0,5.3945]
[1609846496263,0.09406,31561.0,31558.0,0.13632608]
[1609846498166,0.13632608,31559.0,31558.0,0.13632608]
[1609846498366,0.13632608,31559.0,31543.0,0.12907]
[1609846500167,0.09406,31561.0,31549.0,0.13632608]
[1609846500367,4.0132,31566.0,31549.0,0.13632608]
[1609846503169,4.0132,31566.0,31543.0,0.12907]
[1609846503372,4.0132,31566.0,31536.0,5.0856]
[1609846504173,0.13632608,31554.0,31549.0,0.13632608]
[1609846505576,0.13632608,31554.0,31520.0,0.10315]
[1609846505774,4.4087,31546.0,31520.0,0.10315]
[1609846505975,0.13632608,31554.0,31520.0,0.10315]
[1609846506176,4.0445,31532.0,31527.0,0.13632608]
[1609846506577,4.0445,31532.0,31514.0,1.94439679]
[1609846507176,0.14495,31537.0,31514.0,1.94439679]
[1609846507376,0.14495,31537.0,31514.0,6.92559679]
[1609846508078,0.14495,31537.0,31514.0,1.94439679]
[1609846508277,0.13632608,31515.0,31514.0,1.94439679]
[1609846508479,0.13632608,31515.0,31504.0,0.12365]
[1609846508677,4.69212608,31515.0,31502.0,1.95387202]
[1609846509076,0.13632608,31515.0,31502.0,1.95387202]
[1609846509277,4.4915,31505.0,31502.0,1.95387202]
[1609846509478,0.13632608,31515.0,31502.0,1.95387202]
[1609846510278,0.13541,31517.0,31506.0,0.13632608]
[1609846512183,0.13632608,31507.0,31506.0,0.13632608]
[1609846514283,0.0944,31509.0,31506.0,0.13632608]
[1609846516983,0.13632608,31511.0,31506.0,0.13632608]
[1609846518288,0.13541,31517.0,31510.0,0.13632608]
[1609846518488,0.14495,31537.0,31510.0,0.13632608]
[1609846518686,0.14495,31537.0,31515.0,4.4682]
[1609846518887,0.2777,31536.0,31515.0,4.4682]
[1609846519087,0.4145,31536.0,31515.0,4.4682]
[1609846520289,0.4145,31536.0,31535.0,0.13632608]
[1609846520892,0.4145,31536.0,31533.0,4.5242]
[1609846521395,0.4145,31536.0,31525.0,0.10579]
[1609846521598,0.4145,31536.0,31508.0,0.0943]
[1609846521794,0.4145,31536.0,31520.0,3.758]
[1609846522402,0.13632608,31524.0,31523.0,0.13632608]
[1609846522892,0.4145,31536.0,31523.0,0.13632608]
[1609846523093,0.1368,31536.0,31523.0,0.13632608]
[1609846523496,0.13016,31546.0,31523.0,0.13632608]
[1609846523694,0.2788,31551.0,31523.0,0.13632608]
[1609846524396,0.83923961,31565.0,31537.0,0.13632608]
[1609846524594,0.2838,31564.0,31537.0,0.13632608]
[1609846525195,0.3779,31564.0,31537.0,0.13632608]
[1609846525396,0.2838,31564.0,31537.0,0.13632608]
[1609846526294,0.2838,31564.0,31543.0,0.13632608]
[1609846527197,0.2838,31564.0,31548.0,3.559]
[1609846527496,0.096,31563.0,31548.0,3.559]
[1609846527696,0.096,31563.0,31528.0,0.14477]
[1609846527896,0.23987,31563.0,31539.0,4.7455]
[1609846528297,0.13632608,31540.0,31539.0,4.7455]
[1609846532302,0.13632608,31545.0,31539.0,4.7455]
[1609846534303,0.13632608,31545.0,31544.0,0.13632608]
[1609846537108,0.13632608,31545.0,31544.0,0.72302608]
[1609846537309,0.09582,31549.0,31544.0,0.13632608]
[1609846537510,0.14387,31563.0,31548.0,5.1338]
[1609846537709,0.2838,31564.0,31548.0,5.1338]
[1609846538309,0.2838,31564.0,31557.0,0.13632608]
[1609846538711,0.2838,31564.0,31562.0,4.7101]
[1609846540416,0.13632608,31563.0,31562.0,4.84642608]
[1609846540615,0.22720608,31563.0,31562.0,4.84642608]
[1609846544820,0.22720608,31563.0,31562.0,0.13632608]
[1609846545021,0.22720608,31563.0,31550.0,4.2392]
[1609846546424,0.09088,31563.0,31553.0,0.13632608]
[1609846546623,0.2838,31564.0,31553.0,0.13632608]
[1609846548228,0.2838,31564.0,31557.0,5.2406]
[1609846548427,0.13632608,31558.0,31557.0,5.2406]
[1609846550330,0.13632608,31558.0,31557.0,5.37692608]
[1609846554034,0.13632608,31558.0,31544.0,0.1225]
[1609846554234,0.13632608,31558.0,31538.0,4.057]
[1609846554435,0.42143,31564.0,31552.0,0.13632608]
[1609846554833,0.42143,31564.0,31546.0,0.10687]
[1609846555034,0.42143,31564.0,31548.0,4.2385]
[1609846556336,0.13632608,31549.0,31548.0,4.2385]
[1609846556536,0.13632608,31549.0,31546.0,0.10687]
[1609846556736,0.13632608,31549.0,31541.0,0.13632608]
[1609846556737,0.13632608,31549.0,31547.0,5.2613]
[1609846558436,0.13632608,31549.0,31548.0,0.13632608]
[1609846558637,0.13763,31564.0,31548.0,0.13632608]
[1609846558838,0.13763,31564.0,31549.0,0.0949]
[1609846559437,0.2993,31570.0,31549.0,0.0949]
[1609846560337,0.2993,31570.0,31562.0,0.13632608]
[1609846561139,0.2993,31570.0,31559.0,3.7554]
[1609846562343,0.13632608,31560.0,31559.0,3.7554]
[1609846563143,0.13632608,31560.0,31558.0,0.26759608]
[1609846565945,0.13632608,31560.0,31559.0,5.2626]
[1609846568747,0.2993,31570.0,31559.0,5.2626]
[1609846570351,0.13632608,31560.0,31559.0,5.2626]
[1609846572352,0.13632608,31560.0,31558.0,0.13632608]
[1609846572551,0.13632608,31560.0,31559.0,3.6143]
[1609846578762,0.13632608,31560.0,31558.0,0.13632608]
[1609846579963,0.13632608,31560.0,31559.0,5.0237]
[1609846580165,0.2993,31570.0,31559.0,5.0237]
[1609846580363,0.1011,31571.0,31560.0,0.0937]
[1609846580563,0.69515834,31577.0,31570.0,5.12212608]
[1609846580764,0.69495989,31579.0,31570.0,5.12212608]
[1609846581765,0.13632608,31586.0,31571.0,0.0955]
[1609846581964,0.13632608,31586.0,31570.0,5.12212608]
[1609846582163,0.26857608,31586.0,31570.0,5.12212608]
[1609846582564,0.13225,31586.0,31585.0,0.13632608]
[1609846582963,0.13225,31586.0,31585.0,4.45572608]
[1609846583364,0.84911115,31599.0,31585.0,4.45572608]
[1609846583763,0.84911115,31599.0,31596.0,4.4236]
[1609846583964,0.96450352,31608.0,31596.0,4.4236]
[1609846584563,0.96450352,31608.0,31607.0,0.13632608]
[1609846584763,0.96450352,31608.0,31607.0,0.67342608]
[1609846585365,0.96263098,31628.0,31607.0,0.67342608]
[1609846585564,0.47478027,31616.0,31607.0,0.67342608]
[1609846586170,0.10201,31617.0,31607.0,0.67342608]
[1609846586466,0.10201,31617.0,31616.0,0.13632608]
[1609846588570,0.23833608,31617.0,31616.0,0.13632608]
[1609846589471,0.10201,31617.0,31616.0,0.13632608]
[1609846591070,0.13632608,31624.0,31616.0,0.13632608]
[1609846591870,0.13157,31623.0,31565.0,0.0943]
[1609846592070,0.13157,31623.0,31592.0,3.85159]
[1609846592272,0.13157,31623.0,31599.0,0.6799]
[1609846592470,0.13632608,31612.0,31606.0,0.13632608]
[1609846592670,0.13632608,31612.0,31606.0,5.14762608]
[1609846593071,0.13157,31623.0,31606.0,5.14762608]
[1609846594575,0.13157,31623.0,31620.0,0.13632608]
[1609846595178,0.13157,31623.0,31621.0,0.6689]
[1609846596476,0.43022608,31622.0,31621.0,0.6689]
[1609846600585,0.43022608,31622.0,31621.0,0.7647]
[1609846601287,0.43022608,31622.0,31621.0,0.6689]
[1609846601487,0.2939,31622.0,31621.0,0.6689]
[1609846601887,0.2687,31622.0,31621.0,0.6689]
[1609846602086,0.2359,31622.0,31621.0,0.6689]
[1609846602287,0.14896,31632.0,31621.0,0.6689]
[1609846602487,0.28528608,31632.0,31631.0,0.13632608]
[1609846603287,0.14896,31632.0,31631.0,0.75562608]
[1609846603488,0.2825,31653.0,31631.0,0.75562608]
[1609846603887,0.2825,31653.0,31631.0,0.85022608]
[1609846604389,0.94978088,31663.0,31631.0,0.85022608]
[1609846604587,0.94978088,31663.0,31648.0,0.13632608]
[1609846605188,1.04311088,31663.0,31643.0,3.7251]
[1609846605390,0.83528124,31657.0,31643.0,3.7251]
[1609846605990,0.09333,31663.0,31643.0,3.7251]
[1609846606590,0.09333,31663.0,31644.0,0.13632608]
[1609846608090,0.096,31662.0,31643.0,3.7251]
[1609846608494,0.13632608,31644.0,31632.0,0.13632608]
[1609846608693,0.13632608,31644.0,31618.0,0.0935]
[1609846608894,0.24348608,31644.0,31613.0,4.5735]
[1609846609093,0.24348608,31644.0,31596.0,1.88756169]
[1609846609294,4.8473,31639.0,31600.0,0.0936]
[1609846610396,4.8473,31639.0,31598.0,4.2215]
[1609846610595,4.8473,31639.0,31610.0,0.13632608]
[1609846610896,4.8473,31639.0,31610.0,0.22936608]
[1609846611298,4.8473,31639.0,31610.0,0.09304]
[1609846612602,0.13632608,31611.0,31605.0,0.13632608]
[1609846613601,0.13632608,31611.0,31603.0,0.09155]
[1609846614000,3.894,31607.0,31603.0,0.09155]
[1609846614199,3.894,31607.0,31576.0,3.6828]
[1609846614605,3.894,31607.0,31595.0,0.13632608]
[1609846614801,0.1033,31611.0,31595.0,0.13632608]
[1609846616504,0.13632608,31596.0,31595.0,0.13632608]
[1609846616702,0.1033,31611.0,31595.0,0.13632608]